bitfinex/quotes_ETHUSD_20220117
["timestamp","ask_amount","ask_price","bid_price","bid_amount"]
[1642454574089,0.00113684,3184.0,3183.9,18.61478105]
[1642454576254,2.68564533,3184.6,3184.0,17.05]
[1642454576455,2.68564533,3184.6,3184.1,1.02946329]
[1642454576653,0.00284212,3184.5,3184.2,0.57746329]
[1642454576853,0.00284212,3184.5,3184.2,0.69586329]
[1642454577054,2.68564533,3184.6,3184.2,0.69586329]
[1642454577055,0.0022737,3184.4,3184.3,0.57746329]
[1642454577718,0.0022737,3184.4,3184.3,2.12038625]
[1642454578118,0.0022737,3184.4,3184.3,17.52038625]
[1642454579728,0.0022737,3184.4,3184.3,2.15088647]
[1642454579920,0.0022737,3184.4,3184.3,5.25088647]
[1642454580306,6.2318737,3184.9,3184.3,4.67342318]
[1642454580548,6.2318737,3184.9,3184.3,3.13050022]
[1642454580711,0.78739369,3184.8,3184.3,3.13050022]
[1642454581175,0.00170527,3184.7,3184.3,3.13050022]
[1642454581578,0.00113684,3184.6,3184.3,3.13050022]
[1642454581977,0.88362639,3184.6,3184.3,3.13050022]
[1642454582377,1.33823903,3184.5,3184.3,3.13050022]
[1642454582777,2.43893903,3184.5,3184.3,3.13050022]
[1642454583381,1.1007,3184.5,3184.3,3.13050022]
[1642454583796,0.88362639,3184.6,3184.3,3.13050022]
[1642454584184,2.68548844,3184.4,3184.3,3.13050022]
[1642454585308,2.68548844,3184.5,3184.3,3.13050022]
[1642454586318,2.68662528,3184.6,3184.3,3.13050022]
[1642454586510,2.68662528,3184.6,3184.4,1.51967974]
[1642454587109,2.68662528,3184.6,3184.5,13.25260492]
[1642454587511,6.2318737,3184.9,3184.5,17.40260492]
[1642454587512,1.05532528,3184.8,3184.5,17.40260492]
[1642454587709,1.05532528,3184.8,3184.6,1.28223445]
[1642454587965,1.05646213,3184.8,3184.6,1.28223445]
[1642454588324,0.00113685,3184.8,3184.6,1.28223445]
[1642454588960,0.00113685,3184.8,3184.7,11.8954704]
[1642454589354,0.00113685,3184.8,3184.6,1.28223445]
[1642454589554,0.00113685,3184.8,3184.6,1.23223445]
[1642454589853,0.00113685,3184.8,3184.7,10.90854826]
[1642454590256,0.00113685,3184.8,3184.7,7.2303799]
[1642454590461,0.00113685,3184.8,3184.7,10.90968243]
[1642454590854,5.24428347,3186.0,3184.7,10.90968243]
[1642454590855,5.24428347,3186.0,3184.8,16.45]
[1642454591065,5.24428347,3186.0,3184.9,4.78612065]
[1642454591264,0.00511581,3185.7,3184.9,5.08612065]
[1642454591456,0.00511581,3185.7,3184.9,5.38612065]
[1642454591755,0.00454739,3185.6,3184.9,5.38612065]
[1642454592301,0.00397897,3185.5,3185.1,1.17887601]
[1642454592504,0.00397897,3185.5,3185.2,4.36464444]
[1642454592712,0.00341054,3185.4,3185.2,4.36464444]
[1642454592906,0.00341054,3185.4,3185.2,4.66464444]
[1642454593104,1.46085646,3186.3,3185.3,3.9077414]
[1642454593406,1.52724642,3186.2,3185.7,1.1210447]
[1642454593505,1.52724642,3186.2,3184.7,4.14246415]
[1642454593506,1.53520435,3186.2,3184.7,4.14246415]
[1642454593903,1.53520435,3186.2,3184.7,5.19813415]
[1642454594405,0.78483,3185.9,3184.7,5.19813415]
[1642454594703,1.44521742,3185.7,3185.5,0.03013936]
[1642454595104,0.00454739,3185.6,3185.5,0.03013936]
[1642454595311,0.00454739,3185.6,3185.3,1.41452001]
[1642454595728,0.00397897,3185.5,3184.7,0.75567]
[1642454595998,0.00397897,3185.5,3184.7,0.7534384]
[1642454596165,0.00341054,3185.4,3184.7,0.7534384]
[1642454596668,0.78781212,3185.3,3184.7,0.7534384]
[1642454596864,1.11772028,3185.2,3184.9,1.39007041]
[1642454597064,1.11999397,3185.2,3184.9,1.39007041]
[1642454597263,0.00170527,3185.1,3184.9,1.39007041]
[1642454597664,0.00113685,3185.0,3184.9,1.39007041]
[1642454599576,0.00113685,3185.0,3184.9,1.34007041]
[1642454600415,0.00113685,3185.0,3184.9,4.44007041]
[1642454602813,0.00113685,3185.0,3184.9,3.1]
[1642454603849,4.35113685,3185.0,3184.9,3.1]
[1642454604469,0.00113685,3185.0,3184.9,3.1]
[1642454605660,9.55113685,3185.0,3184.9,3.1]
[1642454605959,10.15113685,3185.0,3184.9,3.1]
[1642454606174,11.15113685,3185.0,3184.9,3.1]
[1642454606775,18.90313685,3185.0,3184.9,3.1]
[1642454607301,11.60313685,3185.0,3184.9,3.1]
[1642454607702,7.65313685,3185.0,3184.9,3.1]
[1642454607903,7.05313685,3185.0,3184.9,3.1]
[1642454608403,7.05313685,3185.0,3184.9,4.49320977]
[1642454608610,7.05313685,3185.0,3184.9,3.1]
[1642454608815,9.73870031,3185.0,3184.9,3.1]
[1642454612159,10.03870031,3185.0,3184.9,3.1]
[1642454612359,10.33870031,3185.0,3184.9,3.1]
[1642454612560,21.58870031,3185.0,3184.9,3.1]
[1642454612960,21.58870031,3185.0,3184.7,0.7534384]
[1642454612961,18.35,3184.9,3184.7,0.7534384]
[1642454613169,18.802,3184.8,3184.7,0.7534384]
[1642454613602,0.7853217,3184.5,3183.9,1.43580366]
[1642454613966,0.7853217,3184.5,3184.0,0.00454739]
[1642454614163,2.0853217,3184.5,3184.0,0.00454739]
[1642454614361,2.8706317,3184.5,3184.0,0.00454739]
[1642454614834,2.68556346,3184.4,3184.0,0.00454739]
[1642454615023,1.04330475,3184.3,3184.0,0.00454739]
[1642454615221,1.41556947,3184.2,3184.0,0.00454739]
[1642454616223,4.10113293,3184.2,3184.0,0.00231579]
[1642454616424,4.88638293,3184.2,3184.0,0.00231579]
[1642454616625,4.88638293,3184.2,3183.8,0.00345263]
[1642454616626,12.53533,3184.1,3183.8,0.00345263]
[1642454616837,12.53533,3184.1,3183.1,0.0074316]
[1642454617234,15.22089346,3184.1,3183.1,0.0074316]
[1642454617426,1.15017421,3183.5,3183.3,1.21400128]
[1642454617625,0.78533,3183.9,3183.3,1.21400128]
[1642454617896,3.68556346,3184.1,3183.4,0.00572633]
[1642454618226,2.68556346,3184.0,3183.4,0.00572633]
[1642454618656,2.68556346,3184.0,3183.4,1.11595643]
[1642454619057,2.68556346,3184.0,3183.5,0.0051579]
[1642454619457,1.0,3184.1,3183.5,0.0051579]
[1642454619658,2.227,3184.2,3183.5,0.0051579]
[1642454620029,1.227,3184.2,3183.5,0.0051579]
[1642454620362,1.227,3184.2,3183.5,0.0029263]
[1642454620575,1.15260195,3184.2,3183.5,0.0029263]
[1642454620986,2.15260195,3184.2,3183.9,1.55918778]
[1642454621170,1.78525,3184.2,3183.9,1.55918778]
[1642454621962,0.78525,3184.2,3183.9,1.55918778]
[1642454622411,2.68598047,3184.1,3183.9,1.55918778]
[1642454623265,0.78630266,3184.2,3183.9,1.55918778]
[1642454623416,1.57155266,3184.2,3183.9,1.55918778]
[1642454623819,1.57155266,3184.2,3183.5,3.1029263]
[1642454623820,1.24860976,3184.0,3183.5,3.1029263]
[1642454624018,4.25626832,3183.9,3183.5,1.55918778]
[1642454624216,0.01280942,3183.7,3183.5,1.55918778]
[1642454624465,11.73551,3183.6,3183.5,1.55918778]
[1642454624619,11.9,3183.5,3183.0,0.12696081]
[1642454625017,1.39236701,3183.1,3183.0,0.12696081]
[1642454625458,8.07788701,3183.1,3183.0,0.12980293]
[1642454626675,8.07788701,3183.1,3183.0,0.12757133]
[1642454627964,8.07788701,3183.1,3183.0,0.00284212]
[1642454628465,8.07788701,3183.1,3182.8,0.00397897]
[1642454629473,1.23112375,3183.0,3182.8,0.00397897]
[1642454630125,1.6919,3183.4,3182.8,0.00397897]
[1642454630424,1.61070527,3183.8,3182.8,0.00397897]
[1642454630616,1.15870527,3183.8,3182.8,0.00397897]
[1642454630868,0.00113684,3183.7,3182.8,0.00397897]
[1642454631013,2.721771,3183.5,3182.8,2.40717452]
[1642454631309,2.721771,3183.5,3182.9,0.00341054]
[1642454633213,0.78541,3183.6,3182.9,0.00341054]
[1642454635275,0.77436514,3183.6,3182.9,0.00341054]
[1642454635473,2.23302632,3183.6,3182.9,0.00341054]
[1642454635675,1.45866118,3183.6,3182.9,0.00341054]
[1642454636074,0.00113684,3183.7,3182.9,0.00341054]
[1642454637075,2.68735198,3183.7,3182.9,0.00341054]
[1642454637342,2.68735198,3183.7,3183.3,1.11798605]
[1642454639031,0.00113684,3183.7,3182.9,0.00341054]
[1642454639826,0.00113684,3183.7,3183.4,1.39340244]
[1642454640029,1.21072729,3183.5,3182.9,0.00341054]
[1642454641678,1.21072729,3183.5,3183.1,1.33643842]
[1642454641872,0.00166317,3183.4,3183.1,1.33643842]
[1642454642270,0.00109475,3183.3,3183.1,1.33643842]
[1642454642719,3.47541994,3183.8,3183.1,1.33643842]
[1642454643072,0.00336844,3183.7,3183.1,1.33643842]
[1642454643285,1.31803449,3183.7,3183.1,1.33643842]
[1642454643477,0.00280002,3183.6,3183.1,1.33643842]
[1642454643887,0.0022316,3183.5,3183.1,1.33643842]
[1642454644271,0.00166317,3183.4,3183.1,1.33643842]
[1642454644675,0.00109475,3183.3,3183.1,1.33643842]
[1642454645118,0.00336844,3183.7,3183.1,1.33643842]
[1642454645523,2.68886309,3183.6,3183.1,1.33643842]
[1642454645956,0.0022316,3183.5,3183.1,1.33643842]
[1642454646320,0.00166317,3183.4,3183.1,1.33643842]
[1642454646820,0.00109475,3183.3,3183.1,1.33643842]
[1642454647237,2.68886309,3183.6,3183.1,1.33643842]
[1642454647625,0.0022316,3183.5,3183.1,1.33643842]
[1642454648023,0.00166317,3183.4,3183.1,1.33643842]
[1642454648421,0.00109475,3183.3,3183.1,1.33643842]
[1642454648870,0.00336844,3183.7,3183.4,1.41714412]
[1642454649266,0.00280002,3183.6,3183.4,1.41714412]
[1642454649767,0.0022316,3183.5,3183.4,1.41714412]
[1642454650276,0.0022316,3183.5,3183.4,10.41714412]
[1642454651371,0.0022316,3183.5,3183.4,19.21714412]
[1642454651868,0.0022316,3183.5,3183.4,19.34265012]
[1642454654223,0.0022316,3183.5,3183.4,19.94265012]
[1642454656812,0.0022316,3183.5,3183.4,11.14265012]
[1642454657166,0.0022316,3183.5,3183.4,15.59265012]
[1642454657368,0.0022316,3183.5,3183.4,11.14265012]
[1642454657584,0.0022316,3183.5,3183.4,10.54265012]
[1642454657792,0.0022316,3183.5,3183.4,1.54265012]
[1642454657981,0.0022316,3183.5,3183.4,0.125506]
[1642454661846,0.0022316,3183.5,3183.1,1.33643842]
[1642454662248,0.00166317,3183.4,3183.1,1.33643842]
[1642454662647,0.00109475,3183.3,3183.1,1.63643842]
[1642454663046,0.00280002,3183.6,3183.1,1.63643842]
[1642454663447,0.0022316,3183.5,3183.1,1.93643842]
[1642454663864,0.00166317,3183.4,3183.1,1.93420682]
[1642454664353,0.00109475,3183.3,3183.1,1.93420682]
[1642454664670,0.00564214,3184.1,3183.1,1.93420682]
[1642454664866,0.00564214,3184.1,3183.9,1.20509953]
[1642454665071,0.00507371,3184.0,3183.9,1.20509953]
[1642454666589,2.69148868,3184.0,3183.9,1.20509953]
[1642454666796,2.69148868,3184.0,3183.1,1.4415684]
[1642454666979,2.69148868,3184.0,3183.1,0.2977684]
[1642454667323,0.00450529,3183.9,3182.9,1.64437896]
[1642454667616,0.00393687,3183.8,3182.9,1.64437896]
[1642454667815,0.00393687,3183.8,3183.1,1.34006549]
[1642454668026,2.68641497,3184.0,3183.7,1.25707476]
[1642454668434,0.00450529,3183.9,3183.7,1.25484316]
[1642454668638,0.00450529,3183.9,3183.1,0.3]
[1642454668818,0.00393687,3183.8,3183.0,1.24]
[1642454669025,0.78923687,3183.8,3183.0,1.24]
[1642454669229,0.00336844,3183.7,3182.9,0.59237896]
[1642454669627,0.00280002,3183.6,3182.9,0.59237896]
[1642454669817,2.24241116,3183.5,3182.9,0.59237896]
[1642454670019,2.24464276,3183.5,3183.4,1.15741549]
[1642454670225,2.24241116,3183.5,3183.4,1.15741549]
[1642454671567,0.78532,3183.5,3183.4,1.15741549]
[1642454671979,0.78532,3183.5,3183.4,4.25741549]
[1642454672668,1.98904557,3183.5,3183.4,4.25741549]
[1642454672998,1.98904557,3183.5,3183.4,3.1]
[1642454673368,1.98904557,3183.5,3183.4,2.1]
[1642454673568,2.77438557,3183.5,3183.4,2.1]
[1642454674270,4.15922531,3183.5,3183.4,2.1]
[1642454674916,13.40922531,3183.5,3183.4,2.1]
[1642454675127,12.02438557,3183.5,3183.4,2.1]
[1642454676527,13.02438557,3183.5,3183.4,2.1]
[1642454676720,15.71115393,3183.5,3183.4,2.1]
[1642454680098,6.46115393,3183.5,3183.4,2.1]
[1642454683513,6.41115393,3183.5,3183.4,2.1]
[1642454683935,1.57095,3183.3,3182.7,0.01570984]
[1642454684117,0.78548,3183.2,3182.7,0.01570984]
[1642454684316,0.78548,3183.2,3182.8,0.00174737]
[1642454684317,0.07697867,3183.1,3182.8,0.00174737]
[1642454685324,1.27050711,3183.0,3182.8,1.24870505]
[1642454685718,1.27050711,3183.0,3182.9,0.00117894]
[1642454686890,9.12050711,3183.0,3182.7,0.01465718]
[1642454687089,0.78549,3182.9,3182.7,0.01465718]
[1642454687277,0.68549,3182.9,3182.7,0.01465718]
[1642454691030,0.68549,3182.9,3182.7,0.01242558]
[1642454694170,0.68549,3182.9,3182.7,3.11242558]
[1642454694973,0.68549,3182.9,3182.7,3.06242558]
[1642454695382,2.05599711,3183.0,3182.7,3.06242558]
[1642454697336,2.84145711,3183.0,3182.7,3.06242558]
[1642454700734,1.57095,3183.0,3182.7,3.06242558]
[1642454700954,0.7854609,3183.2,3182.7,3.06242558]
[1642454700955,0.78534,3183.2,3182.7,3.06019398]
[1642454701174,1.1506,3183.3,3182.7,3.06019398]
[1642454701362,0.00113684,3183.1,3182.7,3.06019398]
[1642454701563,0.00170527,3183.2,3182.7,3.06019398]
[1642454701785,0.00227369,3183.3,3183.1,1.19253021]
[1642454701981,0.78551,3183.0,3182.3,0.007]
[1642454702244,0.01252878,3182.4,3182.3,0.007]
[1642454702369,0.04852536,3182.8,3182.3,0.007]
[1642454702602,0.00170527,3183.2,3182.3,0.007]
[1642454702779,0.00170527,3183.2,3182.4,0.00284212]
[1642454702983,0.78661684,3183.1,3182.9,1.42059155]
[1642454703166,1.57202684,3183.1,3182.9,1.42059155]
[1642454703372,0.78548,3183.1,3182.9,1.42059155]
[1642454703577,1.46483542,3183.6,3182.9,1.42059155]
[1642454703767,1.46483542,3183.6,3182.9,2.12029155]
[1642454703974,0.00341054,3183.5,3182.9,2.72029155]
[1642454704168,0.00341054,3183.5,3182.9,2.96909155]
[1642454704404,0.00284211,3183.4,3183.0,1.20430111]
[1642454704813,0.00227369,3183.3,3183.0,1.20430111]
[1642454705022,0.00227369,3183.3,3183.1,1.6447306]
[1642454705220,0.00170527,3183.2,3183.1,1.6447306]
[1642454706646,0.00170527,3183.2,3183.1,14.85500741]
[1642454706819,0.00170527,3183.2,3183.1,11.1947306]
[1642454707421,0.00170527,3183.2,3183.1,14.89291389]
[1642454707720,0.00170527,3183.2,3183.1,11.1947306]
[1642454708572,0.00170527,3183.2,3183.1,14.89418499]
[1642454711471,0.00170527,3183.2,3183.1,11.1947306]
[1642454713516,0.00170527,3183.2,3183.1,17.8447306]
[1642454714017,0.00170527,3183.2,3183.1,17.88043617]
[1642454714224,0.00170527,3183.2,3183.1,17.88462443]
[1642454714630,0.00170527,3183.2,3183.1,18.88462443]
[1642454714833,0.00170527,3183.2,3183.1,19.1447306]
[1642454715424,0.00170527,3183.2,3183.1,19.18332226]
[1642454715624,0.00170527,3183.2,3183.1,19.1447306]
[1642454716265,0.00170527,3183.2,3183.1,19.175853]
[1642454717270,0.00170527,3183.2,3183.1,19.17990305]
[1642454718970,0.00170527,3183.2,3183.1,19.1447306]
[1642454723160,0.00170527,3183.2,3183.1,12.52875815]
[1642454723336,0.00170527,3183.2,3183.1,11.4947306]
[1642454724192,0.00170527,3183.2,3183.1,12.52657741]
[1642454724379,0.00170527,3183.2,3183.1,21.32657741]
[1642454724990,0.00170527,3183.2,3183.1,21.2947306]
[1642454725584,0.00170527,3183.2,3183.1,12.4947306]
[1642454725786,0.00170527,3183.2,3183.1,12.1947306]
[1642454726055,0.00170527,3183.2,3183.1,12.0947306]
[1642454726191,0.00170527,3183.2,3183.1,11.0947306]
[1642454726588,0.00170527,3183.2,3183.1,10.8947306]
[1642454727313,0.00170527,3183.2,3183.1,15.1447306]
[1642454727725,0.00170527,3183.2,3183.1,16.94915924]
[1642454727918,0.00170527,3183.2,3183.1,17.25315924]
[1642454728121,0.00170527,3183.2,3183.1,17.05647707]
[1642454728327,0.00170527,3183.2,3183.1,21.60887707]
[1642454728519,0.00170527,3183.2,3183.1,21.5787306]
[1642454728722,0.00170527,3183.2,3183.1,21.61264196]
[1642454728919,0.00170527,3183.2,3183.1,17.06504196]
[1642454729523,0.00170527,3183.2,3183.1,17.06424196]
[1642454729723,0.00170527,3183.2,3183.1,17.06344196]
[1642454730125,0.00170527,3183.2,3183.1,17.06424196]
[1642454730324,0.00170527,3183.2,3183.1,17.06344196]
[1642454730524,0.00170527,3183.2,3183.1,17.36104196]
[1642454730738,0.00170527,3183.2,3183.1,17.36184196]
[1642454731591,0.00170527,3183.2,3183.1,17.36344196]
[1642454731789,0.00170527,3183.2,3183.1,17.36184196]
[1642454731976,0.00170527,3183.2,3183.1,17.36424196]
[1642454732175,0.00170527,3183.2,3183.1,17.36104196]
[1642454732374,0.00170527,3183.2,3183.1,17.36424196]
[1642454732643,0.00170527,3183.2,3183.1,17.36264196]
[1642454732776,2.6864175,3184.4,3183.2,17.43205145]
[1642454732980,2.6864175,3184.4,3183.3,0.452]
[1642454733287,0.00625265,3184.3,3183.3,1.91497347]
[1642454733494,0.00625265,3184.3,3183.4,0.1224]
[1642454733706,0.00568423,3184.2,3183.5,1.98162639]
[1642454733882,0.408893,3184.2,3183.5,2.32112507]
[1642454734077,0.00511581,3184.1,3183.6,0.3]
[1642454734277,0.00511581,3184.1,3183.6,1.96233228]
[1642454734479,0.00454738,3184.0,3183.6,2.99254326]
[1642454734677,0.00454738,3184.0,3183.6,1.99254326]
[1642454734922,0.00397896,3183.9,3183.6,1.99254326]
[1642454735126,0.00397896,3183.9,3183.6,2.99254326]
[1642454735321,0.00341054,3183.8,3183.6,2.99254326]
[1642454735859,0.59692898,3184.6,3183.6,2.99254326]
[1642454735860,0.00284211,3183.7,3183.6,2.99254326]
[1642454736225,0.00284211,3183.7,3183.6,18.29254326]
[1642454739974,0.00284211,3183.7,3183.6,18.41334326]
[1642454740176,0.00284211,3183.7,3183.6,18.41414326]
[1642454740374,0.00284211,3183.7,3183.6,18.41334326]
[1642454740577,0.00284211,3183.7,3183.6,21.91334326]
[1642454740776,0.00284211,3183.7,3183.6,18.41094326]
[1642454741221,0.00284211,3183.7,3183.6,18.41968333]
[1642454741387,0.00284211,3183.7,3183.6,18.36968333]
[1642454741583,0.00284211,3183.7,3183.6,18.40010966]
[1642454742181,0.00284211,3183.7,3183.6,18.40090966]
[1642454742446,0.00284211,3183.7,3183.6,18.30090966]
[1642454742635,0.00284211,3183.7,3183.6,36.59845254]
[1642454742832,0.00284211,3183.7,3183.6,36.60165254]
[1642454743038,0.00284211,3183.7,3183.6,36.60485254]
[1642454743250,0.00284211,3183.7,3183.6,37.38968254]
[1642454743448,0.00284211,3183.7,3183.6,37.39048254]
[1642454743639,0.00284211,3183.7,3183.6,37.46122865]
[1642454743838,7.8081,3185.2,3185.1,1.30366562]
[1642454744039,0.01215358,3185.3,3183.9,0.452]
[1642454744258,0.00795793,3185.1,3183.9,0.452]
[1642454744491,0.00795793,3185.1,3183.9,0.5704]
[1642454744642,0.00738951,3185.0,3183.9,0.60265105]
[1642454744857,0.00738951,3185.0,3184.6,1.34465647]
[1642454745042,0.40982504,3184.9,3184.7,1.48091607]
[1642454745445,0.00625266,3184.8,3184.7,1.48091607]
[1642454746702,0.00625266,3184.8,3184.7,4.58091607]
[1642454746887,0.00625266,3184.8,3184.7,4.48091607]
[1642454748305,0.00625266,3184.8,3184.7,5.60914962]
[1642454750628,0.00625266,3184.8,3184.7,4.78091607]
[1642454751933,0.00625266,3184.8,3184.7,4.48091607]
[1642454752928,0.00625266,3184.8,3184.7,4.78091607]
[1642454753140,0.00625266,3184.8,3184.7,15.03091607]
[1642454754395,0.00625266,3184.8,3184.7,15.48291607]
[1642454754996,0.00625266,3184.8,3184.7,20.78291607]
[1642454755196,0.00625266,3184.8,3184.7,20.81314301]
[1642454755698,0.00625266,3184.8,3184.7,24.31314301]
[1642454756000,0.00625266,3184.8,3184.7,20.81314301]
[1642454756224,0.00625266,3184.8,3184.7,20.93817284]
[1642454756508,0.00625266,3184.8,3184.7,39.27491895]
[1642454756701,4.9049,3186.3,3184.8,17.4]
[1642454756702,8.70687092,3186.3,3184.8,17.4]
[1642454756900,4.9049,3186.3,3184.9,18.73222334]
[1642454757106,0.00682108,3186.0,3184.9,20.53406945]
[1642454757334,0.00682108,3186.0,3185.1,1.24892936]
[1642454757528,0.00625266,3185.9,3185.2,0.452]
[1642454757770,0.00625266,3185.9,3185.3,1.11671943]
[1642454757932,0.00568424,3185.8,3185.4,0.452]
[1642454758133,0.00568424,3185.8,3185.4,0.5832]
[1642454758353,0.00511581,3185.7,3185.6,1.25667109]
[1642454758547,0.00511581,3185.7,3185.6,1.55667109]
[1642454758731,0.00511581,3185.7,3185.6,1.85667109]
[1642454759972,2.69042494,3185.7,3185.6,1.85667109]
[1642454761588,2.69042494,3185.7,3185.6,5.65008472]
[1642454761777,2.69042494,3185.7,3185.6,2.85667109]
[1642454762780,2.69042494,3185.7,3185.6,6.50135735]
[1642454762978,2.69042494,3185.7,3185.6,2.97747109]
[1642454763201,2.69042494,3185.7,3185.6,1.97747109]
[1642454763380,2.69042494,3185.7,3185.6,2.85667109]
[1642454763589,2.69042494,3185.7,3185.6,2.97747109]
[1642454763789,2.69042494,3185.7,3185.6,1.97747109]
[1642454763980,2.69042494,3185.7,3185.6,2.85667109]
[1642454764187,2.69042494,3185.7,3185.6,6.66108106]
[1642454764394,2.69042494,3185.7,3185.6,5.66268106]
[1642454764578,2.69042494,3185.7,3185.6,6.54108106]
[1642454764841,2.69042494,3185.7,3185.6,6.66348106]
[1642454765035,2.69042494,3185.7,3185.6,6.66428106]
[1642454765230,2.69042494,3185.7,3185.6,2.97907109]
[1642454765430,2.69042494,3185.7,3185.6,1.85667109]
[1642454765634,2.69042494,3185.7,3185.6,6.71326226]
[1642454765836,2.69042494,3185.7,3185.6,5.71406226]
[1642454766061,2.69042494,3185.7,3185.6,6.71406226]
[1642454766341,2.64042494,3185.7,3185.6,6.59086226]
[1642454766531,2.64042494,3185.7,3185.6,2.85667109]
[1642454766741,2.64042494,3185.7,3185.6,1.85667109]
[1642454766937,2.64042494,3185.7,3185.6,2.85667109]
[1642454767134,2.64042494,3185.7,3185.6,1.85667109]
[1642454767534,1.44367691,3186.2,3185.6,5.07747109]
[1642454767733,1.44367691,3186.2,3185.9,1.4899789]
[1642454768032,1.44651903,3186.2,3186.1,1.22160959]
[1642454768587,1.44651903,3186.2,3186.1,1.52160959]
[1642454770715,0.00284212,3186.2,3186.1,1.52160959]
[1642454771892,0.00284212,3186.2,3186.1,1.22160959]
[1642454782735,0.00284212,3186.2,3185.6,4.02138999]
[1642454782936,0.00284212,3186.2,3185.6,3.1]
[1642454783138,0.0022737,3186.1,3185.6,3.1]
[1642454783591,0.00170527,3186.0,3185.6,3.1]
[1642454783979,0.00113685,3185.9,3185.6,3.1]
[1642454784180,1.26251047,3185.8,3185.6,3.1]
[1642454785863,7.25163601,3185.7,3185.6,3.1]
[1642454787853,6.85,3185.7,3185.6,3.1]
[1642454788055,9.53542268,3185.7,3185.6,3.1]
[1642454788463,2.68542268,3185.7,3185.6,3.1]
[1642454789257,3.05507484,3185.7,3185.6,3.1]
[1642454790856,2.68542268,3185.7,3185.6,3.1]
[1642454791707,7.43542268,3185.7,3185.6,3.1]
[1642454791894,7.43542268,3185.7,3185.6,2.97413]
[1642454792088,4.75,3185.7,3185.6,2.97413]
[1642454792689,5.11979567,3185.7,3185.6,2.97413]
[1642454792889,7.80521835,3185.7,3185.6,2.97413]
[1642454795933,3.05521835,3185.7,3185.6,2.97413]
[1642454798585,7.95521835,3185.7,3185.6,2.97413]
[1642454800286,3.05521835,3185.7,3185.6,2.97413]
[1642454803836,3.00521835,3185.7,3185.6,2.97413]
[1642454804434,7.50521835,3185.7,3185.6,2.97413]
[1642454805034,3.00521835,3185.7,3185.6,2.97413]
[1642454805281,2.95521835,3185.7,3185.6,2.97413]
[1642454806899,2.95397135,3185.7,3185.6,2.97413]
[1642454808187,2.95397135,3185.7,3185.6,4.18538409]
[1642454808986,2.95397135,3185.7,3185.6,2.97413]
[1642454815986,3.73884135,3185.7,3185.6,2.97413]
[1642454816386,14.48884135,3185.7,3185.6,2.97413]
[1642454817329,22.08884135,3185.7,3185.6,2.97413]
[1642454817534,23.08884135,3185.7,3185.6,2.97413]
[1642454818034,1.32294336,3185.5,3184.5,3.8677]
[1642454818307,0.78498,3185.3,3184.5,3.8677]
[1642454818438,0.78498,3185.3,3184.6,0.00625266]
[1642454818439,0.04339514,3185.1,3184.6,0.00625266]
[1642454818658,1.33572363,3185.2,3184.6,0.00625266]
[1642454819041,1.33572363,3185.2,3184.3,0.00795793]
[1642454819645,1.14092031,3184.8,3184.3,1.21563178]
[1642454819848,1.14092031,3184.8,3184.3,0.00795793]
[1642454820042,1.570297,3184.7,3184.4,0.0073895]
[1642454820242,1.570297,3184.7,3184.0,0.125481]
[1642454820243,1.570297,3184.7,3184.1,0.00909477]
[1642454820488,0.04706089,3184.6,3184.1,0.00909477]
[1642454820650,1.61758089,3184.6,3184.1,0.00909477]
[1642454820851,1.18809463,3184.3,3184.1,0.00909477]
[1642454821108,15.31500358,3184.2,3184.1,0.00909477]
[1642454821304,16.17400358,3184.2,3184.1,0.00909477]
[1642454821567,16.95930358,3184.2,3184.1,0.00909477]
[1642454822312,17.09750355,3184.2,3184.1,0.00909477]
[1642454823108,23.644634,3184.2,3184.1,0.00909477]
[1642454823509,24.644634,3184.2,3184.1,0.00909477]
[1642454823910,24.78283397,3184.2,3184.1,0.00909477]
[1642454826351,8.46783039,3184.2,3184.1,0.00909477]
[1642454826539,6.82353039,3184.2,3184.1,0.00909477]
[1642454827241,2.96182262,3184.2,3184.1,3.10909477]
[1642454828586,2.96182262,3184.2,3184.1,4.51123356]
[1642454829495,2.96182262,3184.2,3184.1,5.63498759]
[1642454829694,2.96182262,3184.2,3184.1,5.66499135]
[1642454830296,2.68542268,3184.2,3184.1,5.66499135]
[1642454831790,2.68542268,3184.6,3184.1,5.66499135]
[1642454832190,2.68542268,3184.6,3184.2,0.00852635]
[1642454833965,2.68542268,3184.6,3184.2,0.30852635]
[1642454834339,2.68542268,3184.6,3184.3,0.00795793]
[1642454835341,2.68542268,3185.1,3184.3,0.00795793]
[1642454836390,2.68542268,3185.1,3184.7,1.10661979]
[1642454836591,0.36670862,3185.0,3184.8,1.45658172]
[1642454836788,0.36670862,3185.0,3184.8,1.46169753]
[1642454836999,0.36670862,3185.0,3184.9,0.00454739]
[1642454837195,6.41670862,3185.0,3184.9,0.00454739]
[1642454837412,0.36670862,3185.0,3184.9,0.00454739]
[1642454838006,9.26670862,3185.0,3184.9,0.00454739]
[1642454838209,8.9,3185.0,3184.9,0.00454739]
[1642454839853,9.26670862,3185.0,3184.9,0.00454739]
[1642454840837,13.35993048,3185.0,3184.9,0.00454739]
[1642454841039,13.35993048,3185.0,3184.0,0.0096632]
[1642454841236,0.78524,3184.8,3184.0,0.0096632]
[1642454841437,0.78522,3184.6,3184.0,0.0096632]
[1642454841637,2.26074,3184.6,3184.0,0.0096632]
[1642454841838,2.26074,3184.6,3184.3,1.0969872]
[1642454842037,0.78522,3184.6,3184.3,1.0969872]
[1642454842250,0.78522,3184.6,3184.4,0.0073895]
[1642454844285,1.1658849,3184.7,3184.4,0.0073895]
[1642454845294,0.36668648,3184.6,3184.4,0.0073895]
[1642454845770,0.26668648,3184.6,3184.4,0.0073895]
[1642454846492,1.0,3184.8,3184.4,0.0073895]
[1642454846692,3.22878691,3184.9,3184.4,0.0073895]
[1642454846891,3.22878691,3184.9,3184.5,1.46641177]
[1642454846892,2.22878691,3184.9,3184.5,1.46641177]
[1642454847094,1.44367691,3184.9,3184.5,1.46641177]
[1642454847534,10.34367691,3185.0,3184.5,1.46641177]
[1642454848134,10.34367691,3185.0,3184.5,4.56641177]
[1642454848443,8.9,3185.0,3184.5,4.56641177]
[1642454849141,8.9,3185.0,3184.5,3.1]
[1642454849953,8.9,3185.0,3184.9,1.12227979]
[1642454850144,8.9,3185.0,3184.5,4.22581035]
[1642454850340,8.9,3185.0,3184.9,0.00454739]
[1642454851610,0.78506,3185.1,3184.9,1.22987913]
[1642454851994,0.78506,3185.1,3185.0,0.00397896]
[1642454852991,7.48506,3185.1,3185.0,0.00397896]
[1642454853190,10.17107133,3185.1,3185.0,0.00397896]
[1642454857039,10.17107133,3185.1,3184.9,0.00454739]
[1642454858583,10.98601133,3185.0,3184.9,0.00454739]
[1642454858992,2.68601133,3185.0,3184.9,0.00454739]
[1642454859800,10.63601133,3185.0,3184.9,0.00454739]
[1642454861193,10.63601133,3185.0,3184.8,0.00511581]
[1642454862447,13.53601133,3184.9,3184.8,0.00511581]